bitfinex-derivatives/quotes_ETHF0:USTF0_20250817
["timestamp","ask_amount","ask_price","bid_price","bid_amount"]
[1755391066804,0.4341,4427.6,4427.5,1.4727]
[1755391067100,0.1751,4427.7,4427.6,1.4727]
[1755391068705,3.7694,4428.3,4428.2,0.575]
[1755391069002,4.297,4428.3,4428.2,1.4517]
[1755391069999,4.297,4428.3,4428.2,1.2063]
[1755391070202,3.2078,4428.3,4428.2,1.4517]
[1755391070504,0.1765,4428.3,4428.2,1.4517]
[1755391070801,1.0595,4428.5,4428.4,1.4517]
[1755391071206,1.0778,4428.5,4428.4,1.4517]
[1755391072704,0.3965,4428.4,4427.7,3.2078]
[1755391072904,1.0892,4427.8,4427.7,4.4141]
[1755391073105,1.0892,4427.8,4427.7,4.6595]
[1755391073606,1.0892,4427.8,4427.7,1.2063]
[1755391073908,1.0595,4427.8,4427.7,1.4517]
[1755391074304,1.0892,4427.8,4427.7,1.2063]
[1755391074808,1.0892,4427.8,4427.7,1.4517]
[1755391075002,1.0892,4427.8,4427.7,1.2063]
[1755391075306,1.0892,4427.8,4427.7,1.4517]
[1755391075507,0.6498,4427.7,4427.4,0.6143]
[1755391075708,1.0778,4427.5,4427.4,1.1893]
[1755391075896,1.0892,4427.5,4427.4,1.1893]
[1755391076100,1.0892,4427.5,4427.4,1.4517]
[1755391076701,1.0892,4427.5,4427.4,0.8374]
[1755391076909,1.0892,4427.5,4427.4,1.4517]
[1755391080011,1.0778,4427.5,4427.1,3.2078]
[1755391080206,0.4508,4427.4,4427.3,0.8374]
[1755391080410,0.4508,4427.1,4427.0,1.2063]
[1755391080714,1.0892,4427.1,4427.0,0.8374]
[1755391081513,1.0892,4426.5,4426.4,1.4517]
[1755391082208,0.2533,4426.4,4426.0,3.2078]
[1755391082407,1.0778,4426.1,4426.0,0.575]
[1755391082602,1.0892,4426.1,4426.0,0.575]
[1755391082802,0.4394,4426.1,4425.5,0.3689]
[1755391083007,0.6744,4425.6,4425.5,0.8374]
[1755391083208,1.0595,4425.6,4425.5,1.4517]
[1755391083417,0.6744,4425.6,4425.5,1.4517]
[1755391084713,1.0595,4425.6,4425.5,1.4517]
[1755391087114,1.0778,4425.6,4425.4,3.2078]
[1755391087312,0.7041,4425.5,4425.4,3.7828]
[1755391087606,1.0595,4425.5,4425.4,4.3971]
[1755391087814,1.0595,4425.5,4425.4,4.6595]
[1755391089815,1.0892,4425.5,4425.4,4.6595]
[1755391090009,0.1765,4425.6,4425.5,1.4517]
[1755391090208,1.0595,4425.6,4425.5,1.4517]
[1755391090606,1.0778,4425.6,4425.5,1.4517]
[1755391090816,1.0892,4425.6,4425.5,0.8374]
[1755391091017,0.4394,4425.2,4425.1,1.4517]
[1755391091219,1.0892,4425.2,4425.1,1.4517]
[1755391095715,1.0595,4425.2,4425.1,1.4517]
[1755391095917,0.6744,4425.2,4425.1,1.4517]
[1755391097014,0.4211,4425.2,4425.1,1.4517]
[1755391097717,0.685,4425.2,4425.1,1.4517]
[1755391097919,3.4717,4425.6,4425.1,1.4517]
[1755391098119,1.0491,4425.7,4425.6,1.0723]
[1755391098322,1.0491,4425.7,4425.6,1.4646]
[1755391098713,1.0788,4425.7,4425.6,1.4646]
[1755391099718,1.0788,4425.7,4425.6,1.2124]
[1755391101628,0.4194,4425.1,4425.0,1.4646]
[1755391101919,1.0491,4425.1,4425.0,1.4646]
[1755391104327,1.0678,4425.1,4425.0,1.4646]
[1755391104526,1.0491,4425.1,4425.0,1.4646]
[1755391105526,3.2078,4425.6,4425.0,1.2244]
[1755391105725,0.6297,4426.3,4426.2,1.4646]
[1755391105726,1.0491,4426.3,4426.2,1.4646]
[1755391106430,1.0678,4426.3,4426.2,1.4646]
[1755391106920,1.0491,4426.3,4425.5,3.2078]
[1755391107120,1.0788,4426.3,4425.9,0.6445]
[1755391107331,1.0678,4425.7,4425.6,1.2244]
[1755391107531,1.0788,4425.7,4425.6,1.2244]
[1755391107734,1.0678,4425.7,4425.6,1.4646]
[1755391108529,1.0491,4425.7,4425.6,1.4646]
[1755391108937,0.1593,4425.7,4425.6,1.4646]
[1755391109237,0.789,4426.0,4425.9,1.4646]
[1755391109828,4.2756,4426.6,4426.5,0.164]
[1755391110034,4.78426162,4426.6,4426.5,1.4646]
[1755391110433,1.0788,4426.6,4426.5,0.4042]
[1755391110938,1.0788,4426.6,4426.5,1.2124]
[1755391111740,1.0788,4426.6,4426.5,1.4646]
[1755391112134,1.0788,4426.6,4425.6,1.61848731]
[1755391112338,0.1593,4425.9,4425.8,1.0723]
[1755391112539,1.0491,4425.9,4425.8,1.4646]
[1755391112734,1.0788,4425.9,4425.8,0.2402]
[1755391113334,0.4529,4425.9,4425.6,0.2402]
[1755391113537,0.8149,4425.7,4425.6,1.2244]
[1755391113843,1.0491,4425.7,4425.6,1.2244]
[1755391114343,1.0491,4425.7,4425.6,1.4646]
[1755391114941,0.8149,4425.7,4425.6,0.8201]
[1755391115150,1.34827251,4425.7,4425.6,0.8201]
[1755391115445,1.61217251,4425.7,4425.6,0.8201]
[1755391117641,1.0791,4424.7,4424.6,1.4646]
[1755391117846,1.0678,4424.7,4424.6,1.4646]
[1755391118546,1.0791,4424.7,4424.6,1.4646]
[1755391119850,0.6297,4425.0,4424.6,1.4646]
[1755391120046,0.1593,4424.9,4424.8,0.5799]
[1755391120245,22.90199401,4426.6,4424.1,0.10171445]
[1755391120246,3.2078,4425.7,4425.2,0.2402]
[1755391120439,0.6297,4425.5,4424.5,0.4924]
[1755391120639,0.1593,4424.7,4424.6,0.5531]
[1755391120951,0.1593,4424.7,4424.6,0.9722]
[1755391121336,0.4232,4424.7,4424.6,1.4646]
[1755391121738,0.789,4424.7,4424.6,1.4646]
[1755391122342,0.641,4425.1,4424.6,1.4646]
[1755391122647,1.0491,4425.0,4424.9,0.8201]
[1755391122845,0.4375,4424.6,4424.5,1.2124]
[1755391123146,1.0785,4424.6,4424.5,1.2124]
[1755391123346,1.0672,4424.6,4424.5,1.4646]
[1755391123744,1.0491,4424.6,4424.5,1.4646]
[1755391124448,1.0672,4424.6,4424.5,1.4646]
[1755391124645,1.0785,4424.6,4424.5,0.4042]
[1755391124850,1.0785,4424.6,4424.1,0.74621445]
[1755391125047,0.4375,4424.3,4424.2,1.4646]
[1755391125250,1.0672,4424.3,4424.2,1.4646]
[1755391125650,1.0785,4424.3,4424.2,1.4646]
[1755391125850,1.0672,4424.3,4424.2,1.0604]
[1755391126046,1.0491,4424.3,4424.1,0.10171445]
[1755391126246,4.2863,4424.2,4424.1,0.10171445]
[1755391128444,4.81756596,4424.2,4424.1,0.10171445]
[1755391128642,0.2394,4424.1,4422.8,0.245]
[1755391128849,4.2907,4423.3,4423.2,0.4067]
[1755391129050,0.6278,4423.2,4422.2,3.2078]
[1755391129354,1.0829,4422.4,4422.3,1.4749]
[1755391129550,3.2078,4422.8,4422.3,1.4749]
[1755391129754,3.2078,4422.8,4422.5,0.897]
[1755391129957,3.6185,4422.8,4422.7,1.4749]
[1755391130151,3.8729,4422.8,4422.7,1.4749]
[1755391130358,4.2613,4422.8,4422.7,1.4749]
[1755391130655,3.3791,4422.8,4422.7,1.4749]
[1755391131045,3.6185,4422.8,4422.7,1.4749]
[1755391131256,4.2613,4422.8,4422.7,1.4749]
[1755391131456,4.2794,4422.8,4422.7,1.4749]
[1755391131757,3.6629,4422.8,4422.1,0.245]
[1755391131950,1.0716,4422.2,4422.1,0.8229]
[1755391132149,1.0829,4422.2,4422.1,1.4749]
[1755391132550,1.0716,4422.2,4422.1,1.4749]
[1755391133756,0.6832,4422.2,4422.1,1.4749]
[1755391133954,1.0829,4422.2,4422.1,1.4749]
[1755391134556,1.0716,4422.2,4422.1,1.4749]
[1755391135858,1.0829,4422.2,4422.1,0.1617]
[1755391136364,1.0829,4422.2,4422.1,1.4749]
[1755391136863,1.0716,4422.2,4422.1,1.4749]
[1755391139261,3.2078,4422.3,4422.1,1.4749]
[1755391139456,3.3791,4422.3,4422.2,1.4749]
[1755391139656,4.2613,4422.3,4422.2,1.4749]
[1755391139863,4.2907,4422.3,4422.2,0.00566723]
[1755391140058,4.2907,4422.3,4422.2,0.25066723]
[1755391140563,6.6629,4422.3,4421.2,0.245]
[1755391140769,1.0829,4421.3,4421.2,1.07220001]
[1755391141659,0.1713,4420.6,4420.5,3.3754]
[1755391141861,1.3728,4420.6,4419.9,3.2078]
[1755391142169,0.1713,4420.1,4420.0,1.2299]
[1755391142863,0.1713,4420.1,4420.0,1.4749]
[1755391143461,3.4472,4421.0,4420.1,0.897]
[1755391143669,3.4472,4421.0,4419.6,3.2078]
[1755391143670,4.5806,4421.0,4420.9,1.4749]
[1755391143963,4.5806,4421.0,4420.9,0.8229]
[1755391144161,0.7826,4420.9,4419.7,0.897]
[1755391144367,3.2078,4421.0,4419.6,3.2078]
[1755391144567,0.6278,4420.7,4419.9,0.897]
[1755391144768,0.6278,4420.7,4420.0,0.897]
[1755391144967,0.8296,4420.6,4420.5,0.5779]
[1755391145266,1.3728,4420.6,4420.5,1.4749]
[1755391148262,3.5962,4421.0,4420.6,0.6378]
[1755391148471,4.0069,4421.0,4420.9,1.4749]
[1755391148767,3.2078,4421.0,4420.9,1.4749]
[1755391149170,4.4258,4421.0,4420.9,1.4749]
[1755391149358,4.5806,4421.0,4420.9,1.4749]
[1755391149559,1.3728,4421.0,4420.9,1.4749]
[1755391149971,1.218,4421.0,4420.9,1.4749]
[1755391150172,1.3728,4421.0,4420.9,1.4749]
[1755391150670,0.1713,4420.3,4420.2,1.4749]
[1755391150872,0.4107,4420.3,4420.2,1.4749]
[1755391151074,1.3728,4420.3,4420.2,1.4749]
[1755391152373,1.218,4420.3,4420.2,1.4749]
[1755391153866,1.3728,4420.3,4420.2,1.4749]
[1755391156668,1.218,4420.3,4420.2,1.4749]
[1755391158673,0.418,4421.0,4420.9,1.4874]
[1755391158878,0.2444,4421.3,4420.9,1.4874]
[1755391159073,0.70510625,4421.2,4421.1,1.4874]
[1755391159478,1.76530625,4421.2,4421.1,1.4874]
[1755391159667,1.92120625,4421.2,4421.1,1.4874]
[1755391163574,1.92120625,4421.2,4420.5,0.2512]
[1755391163775,0.6005,4420.7,4420.6,1.2362]
[1755391163980,1.92120625,4420.7,4420.6,1.4874]
[1755391164575,1.13200625,4420.7,4420.2,0.2606]
[1755391164778,1.92120625,4420.6,4420.5,1.2362]
[1755391164974,1.92120625,4420.6,4420.5,1.4874]
[1755391165579,1.92120625,4420.6,4420.5,0.8484]
[1755391165783,1.3897,4420.2,4420.1,1.2362]
[1755391166082,1.92223429,4420.2,4420.1,0.8484]
[1755391166683,1.92223429,4420.2,4420.1,1.2362]
[1755391166879,1.92223429,4420.2,4419.4,3.2078]
[1755391167079,0.1736,4419.5,4419.4,4.3074]
[1755391167287,0.8069,4419.5,4419.4,4.6952]
[1755391167677,1.0679,4419.5,4419.4,4.6952]
[1755391167883,1.2338,4419.5,4419.4,4.6952]
[1755391168085,1.3897,4419.5,4419.4,4.6952]
[1755391169184,1.92294298,4419.5,4419.4,4.6952]
[1755391170189,1.3897,4419.5,4419.4,4.6952]
[1755391171090,1.2338,4419.5,4419.4,4.6952]
[1755391171488,1.0679,4419.5,4419.4,4.6952]
[1755391172285,0.1736,4419.5,4419.4,4.6952]
[1755391172789,0.1736,4419.5,4419.4,1.4874]
[1755391174188,3.3814,4420.0,4419.9,0.4188]
[1755391174386,3.91432167,4420.0,4419.9,1.4874]
[1755391174587,4.80862167,4420.0,4419.9,1.4874]
[1755391174786,4.97452167,4420.0,4419.9,1.4874]
[1755391174988,0.53292167,4420.0,4419.9,1.4874]
[1755391175185,3.3814,4420.7,4420.6,0.5878]
[1755391175486,3.91436485,4420.7,4420.6,1.4874]
[1755391175688,3.74076485,4420.7,4420.6,1.4874]
[1755391175888,3.2078,4420.7,4420.6,1.4874]
[1755391176090,0.2444,4421.0,4420.6,1.4874]
[1755391176286,0.70655557,4420.9,4420.8,1.4874]
[1755391176488,1.92265557,4420.9,4420.8,1.4874]
[1755391177692,1.3897,4420.3,4420.2,1.4874]
[1755391177991,1.3897,4420.3,4420.2,1.2362]
[1755391178296,1.3897,4420.3,4420.2,1.4874]
[1755391178692,1.0679,4420.3,4420.2,1.4874]
[1755391179090,0.1736,4420.3,4420.2,1.4874]
[1755391180995,0.418,4420.3,4420.2,1.4874]
[1755391181496,0.8069,4420.3,4420.2,1.4874]
[1755391181694,3.2078,4420.9,4420.4,0.3878]
[1755391181895,3.3814,4420.9,4420.8,1.4874]
[1755391182198,4.4416,4420.9,4420.8,1.4874]
[1755391182387,4.5975,4420.9,4420.8,1.4874]
[1755391182586,3.8868,4420.9,4420.8,1.4874]
[1755391182797,4.2757,4420.9,4420.8,1.4874]
[1755391183099,4.5975,4420.9,4420.8,1.4874]
[1755391184802,0.3395,4420.4,4420.3,1.0996]
[1755391184998,1.3897,4420.4,4420.3,1.2362]
[1755391185299,1.3897,4420.4,4420.3,0.4169]
[1755391185488,1.3897,4420.4,4420.3,0.8484]
[1755391186293,1.3897,4420.4,4420.3,1.4874]
[1755391192502,1.0679,4420.4,4420.3,1.4874]
[1755391193396,3.2078,4420.9,4420.4,0.6373]
[1755391193702,3.2078,4420.9,4420.8,1.4909]
[1755391194103,3.2078,4421.4,4421.3,1.4909]
[1755391194500,3.3818,4421.4,4421.3,1.4909]
[1755391194801,3.2078,4421.4,4421.3,1.4909]
[1755391195005,3.2078,4421.9,4421.4,0.8874]
[1755391195197,4.2446,4421.9,4421.8,1.4909]
[1755391195397,4.5671,4421.9,4421.8,1.4909]
[1755391195598,0.5952,4420.9,4420.8,0.3454]
[1755391195801,0.5952,4420.6,4420.5,1.2358]
[1755391196105,1.1168,4420.6,4420.5,1.2358]
[1755391196305,1.3593,4420.6,4420.5,1.2358]
[1755391196506,1.3593,4420.6,4420.5,1.4909]
[1755391196707,0.5952,4420.6,4419.7,0.8874]
[1755391197008,1.3593,4420.3,4420.2,0.8586]
[1755391197200,1.3593,4420.3,4419.8,0.6323]
[1755391197400,1.3593,4419.7,4419.6,3.2078]
[1755391197603,0.5952,4419.4,4419.3,1.4909]
[1755391197901,0.8377,4419.4,4419.3,1.4909]
[1755391199609,0.6707,4419.4,4419.3,1.4909]
[1755391199807,3.2078,4420.4,4419.3,1.4909]
[1755391200007,1.90961096,4420.3,4420.2,0.8586]
[1755391200202,1.90961096,4420.3,4419.7,0.8586]
[1755391200203,1.3593,4419.8,4419.7,0.8586]
[1755391200410,1.3593,4419.8,4419.7,0.1698]
[1755391200711,0.7507,4419.7,4419.6,0.8586]
[1755391200913,1.3593,4419.7,4419.6,1.2408]
[1755391201213,1.3593,4419.7,4419.6,0.1698]
[1755391202012,1.3593,4419.7,4419.6,0.4249]
[1755391203312,0.5952,4419.7,4419.4,0.2551]
[1755391203515,1.3593,4419.5,4419.4,0.6035]
[1755391204212,1.3593,4419.5,4419.4,0.8586]
[1755391204411,1.3593,4419.5,4419.4,1.4909]
[1755391204611,1.2038,4419.5,4419.4,1.4909]
[1755391208114,0.174,4419.5,4419.4,1.4909]
[1755391208315,1.0368,4419.8,4419.7,1.4909]
[1755391208521,1.3593,4419.8,4419.7,1.4909]
[1755391208721,1.3593,4419.8,4419.7,1.2408]
[1755391209521,1.3593,4419.8,4419.7,0.8586]
[1755391209718,0.5952,4419.8,4418.9,3.4629]
[1755391209921,1.3593,4419.0,4418.9,0.8586]
[1755391212620,0.5952,4418.7,4418.6,1.2358]
[1755391212814,1.3593,4418.7,4418.6,1.2358]
[1755391213219,1.3593,4418.7,4418.6,1.4909]
[1755391215621,0.7642,4418.6,4418.4,3.2078]
[1755391215824,1.3594,4418.5,4418.4,3.8113]
[1755391216024,1.3594,4418.5,4418.4,4.1935]
[1755391216227,1.3594,4418.5,4418.4,4.6987]
[1755391216724,1.3594,4418.5,4418.4,3.3776]
[1755391217030,1.3594,4418.5,4418.4,4.6987]
[1755391222934,1.2038,4418.5,4418.4,4.6987]
[1755391223633,1.0368,4418.5,4418.4,4.6987]
[1755391223835,0.4165,4418.5,4418.4,4.6987]
[1755391224033,0.8062,4418.9,4418.8,1.4511]
[1755391224331,3.6078,4419.4,4419.3,0.5748]
[1755391224530,4.4139,4419.4,4419.3,1.4511]
[1755391224733,4.5699,4419.4,4419.3,1.4511]
[1755391225028,3.2078,4419.4,4419.3,1.4511]
[1755391225233,0.2531,4419.9,4419.3,0.5748]
[1755391225429,0.1599,4419.8,4419.7,1.1237]
[1755391225628,4.014,4420.0,4419.9,1.4511]
[1755391226026,3.2078,4420.0,4419.9,1.4511]
[1755391226326,4.5699,4420.6,4420.5,0.6731]
[1755391226526,1.3621,4420.0,4419.9,1.4511]
[1755391226730,1.2061,4419.8,4419.7,0.2599]
[1755391226929,0.5598,4419.8,4419.4,0.2431]
[1755391227130,0.5598,4419.6,4419.5,0.8347]
[1755391227434,1.3621,4419.6,4419.5,1.4511]
[1755391227633,3.2078,4420.1,4419.5,1.4511]
[1755391227830,3.2078,4420.1,4420.0,1.4511]
[1755391228135,4.014,4420.1,4420.0,1.4511]
[1755391228435,4.2541,4420.1,4420.0,1.4511]
[1755391228833,4.014,4420.1,4420.0,1.4511]
[1755391229136,4.5699,4420.1,4420.0,1.4511]
[1755391229939,1.3621,4420.1,4420.0,1.4511]
[1755391231637,4.5699,4420.1,4420.0,1.4511]
[1755391232137,0.5598,4419.7,4419.3,0.6164]
[1755391232434,0.1599,4419.0,4418.9,0.5349]
[1755391232737,1.0463,4419.0,4418.9,1.4511]
[1755391232932,0.6531,4419.0,4418.9,1.4511]
[1755391233232,3.2078,4419.6,4419.5,0.5748]
[1755391233434,0.3932,4420.1,4419.6,0.8763]
[1755391233630,0.2531,4420.4,4420.0,0.9481]
[1755391233835,0.2531,4420.4,4419.7,3.2078]
[1755391233836,0.413,4420.4,4420.3,1.4511]
[1755391234043,1.0463,4420.4,4420.3,1.4511]
[1755391234738,1.3621,4420.4,4420.3,1.4511]
[1755391235034,1.3621,4420.4,4420.3,0.8347]
[1755391235234,0.5598,4420.1,4420.0,0.8347]
[1755391235438,1.3621,4420.1,4420.0,0.8347]
[1755391235834,0.8023,4420.0,4419.1,0.8763]
[1755391236030,1.3621,4419.2,4419.1,1.4511]
[1755391236236,1.3621,4419.2,4419.1,0.409]
[1755391236434,1.3621,4419.1,4419.0,3.2078]
[1755391236635,1.3621,4419.1,4418.8,0.3733]
[1755391236833,1.3621,4419.0,4418.9,0.1658]
[1755391237036,0.5598,4418.6,4418.5,0.8347]
[1755391237236,1.3621,4418.6,4418.5,1.4511]
[1755391237641,1.2061,4418.6,4418.5,1.4511]
[1755391239945,0.1599,4418.6,4418.5,1.4511]
[1755391242354,0.6463,4418.9,4418.5,1.4511]
[1755391242544,0.1599,4418.7,4418.6,0.5748]
[1755391242745,1.0463,4418.7,4418.6,0.8347]
[1755391242952,1.2061,4418.7,4418.6,0.8347]
[1755391243247,0.6463,4419.4,4419.0,1.4511]
[1755391243448,3.2078,4419.7,4418.4,3.2078]
[1755391243449,4.2541,4419.7,4419.6,1.4511]
[1755391244246,4.4139,4419.7,4419.6,1.4511]
[1755391244549,4.5699,4419.7,4419.6,1.4511]
[1755391245143,3.8609,4419.7,4419.6,1.4511]
[1755391245344,3.2078,4419.7,4419.6,1.4511]
[1755391246553,4.4139,4419.7,4419.6,1.4511]
[1755391246849,4.5699,4419.7,4419.6,0.409]
[1755391247050,3.7676,4419.7,4418.5,3.2078]
[1755391247243,0.156,4419.6,4418.5,3.2078]
[1755391247442,0.6486,4419.5,4418.5,3.2078]
[1755391247643,0.1651,4418.9,4418.8,1.4752]
[1755391248551,0.6486,4419.2,4418.9,0.874]
[1755391248754,0.4205,4419.2,4419.1,1.4752]
[1755391249053,3.2078,4419.7,4419.6,1.4752]
[1755391249054,3.6283,4419.7,4419.6,1.4752]
[1755391249250,3.3729,4419.7,4419.6,1.4752]
[1755391249751,4.2769,4419.7,4419.6,1.4752]
[1755391249947,1.0691,4419.7,4419.6,1.4752]
[1755391250146,1.2331,4419.7,4419.6,1.4752]
[1755391250345,0.4205,4419.2,4419.1,1.2301]
[1755391250542,1.3887,4419.2,4419.1,1.2301]
[1755391250742,0.9778,4420.1,4420.0,0.6012]
[1755391250948,1.94070411,4420.1,4420.0,0.8432]
[1755391251147,1.94070411,4420.1,4420.0,1.4752]
[1755391253952,0.55200411,4420.1,4420.0,1.4752]
[1755391254359,1.2331,4420.6,4420.5,0.6012]
[1755391254558,1.78525383,4420.6,4420.5,1.4752]
[1755391255152,1.94085383,4420.6,4420.5,1.4752]
[1755391255951,0.2554,4419.6,4419.5,0.6798]
[1755391256158,1.0691,4419.6,4419.5,1.4752]
[1755391256352,0.1651,4419.6,4419.5,1.4752]
[1755391257661,1.2247,4419.9,4419.8,0.6012]
[1755391257957,0.1651,4419.9,4419.8,1.4752]
[1755391258159,1.3887,4420.6,4420.5,1.2332]
[1755391258360,1.94077338,4420.6,4420.5,1.4752]
[1755391258755,0.55207338,4420.6,4420.5,1.4752]
[1755391259058,0.1651,4420.7,4420.6,1.2107]
[1755391259255,0.1651,4420.7,4420.6,1.4752]
[1755391259655,0.4204,4420.7,4420.6,1.4752]
[1755391259856,1.2331,4420.7,4420.6,1.4752]
[1755391260057,1.3887,4420.7,4420.6,1.4752]
[1755391261355,1.78505594,4420.7,4420.6,1.4752]
[1755391263560,1.94065594,4420.7,4420.6,1.4752]
[1755391267363,1.20065594,4420.7,4420.6,1.4752]
[1755391267557,0.55195594,4420.7,4420.6,1.4752]
[1755391267763,3.2078,4421.4,4421.3,0.1634]
[1755391267964,3.2078,4421.4,4421.3,1.4752]
[1755391269658,3.4631,4421.9,4421.3,1.4752]
[1755391269859,4.0476,4421.9,4421.8,0.6012]
[1755391270059,4.5965,4421.9,4421.8,1.4752]
[1755391270661,3.2078,4421.9,4421.8,1.4752]
[1755391270863,4.4409,4422.4,4422.3,0.6012]
[1755391271063,4.5965,4422.4,4422.3,0.8432]
[1755391271258,4.5965,4422.4,4422.3,0.4153]
[1755391272255,4.5965,4422.4,4422.3,1.0883]
[1755391272459,4.2769,4422.4,4422.3,1.4752]
[1755391273060,4.5965,4422.4,4422.3,1.4752]
[1755391273356,0.8042,4422.3,4422.1,0.242]
[1755391273563,0.9954,4422.2,4422.1,0.5787]
[1755391273864,1.3887,4422.2,4422.1,0.5787]
[1755391274065,1.3887,4422.2,4422.1,1.4752]
[1755391274460,1.2331,4422.2,4422.1,0.3367]
[1755391274656,1.3887,4422.2,4422.1,0.8432]
[1755391274861,1.2331,4422.2,4422.1,1.4752]
[1755391275165,0.4205,4422.2,4422.1,1.4752]
[1755391275566,1.0691,4422.2,4422.1,1.4752]
[1755391275760,1.2331,4422.2,4422.1,1.4752]
[1755391276567,0.8138,4422.2,4422.1,1.4752]
[1755391276766,0.4205,4422.2,4422.1,1.4752]
[1755391276968,0.4205,4422.3,4421.0,3.2078]
[1755391277164,0.9917,4422.2,4422.1,0.1733]
[1755391277461,0.7836,4422.0,4421.2,0.8652]
[1755391277666,0.1553,4422.0,4421.0,3.2078]
[1755391277970,1.3631,4421.9,4421.8,0.4167]
[1755391278159,1.3631,4421.9,4421.5,0.6167]
[1755391278364,3.2078,4422.4,4421.7,0.1661]
[1755391278365,1.3631,4421.8,4421.7,0.1661]
[1755391278662,1.3631,4421.8,4421.7,0.5828]
[1755391278862,1.3631,4421.8,4421.7,0.8413]
[1755391279266,1.3631,4421.8,4421.7,1.2119]
[1755391279464,0.4046,4421.8,4421.7,1.2119]
[1755391281773,3.2078,4422.3,4421.7,6.6345]
[1755391282069,3.2078,4422.3,4422.2,0.4267]
[1755391282268,3.2078,4422.3,4422.2,1.0458]
[1755391283266,0.3851,4422.8,4422.2,0.6752]
[1755391283267,3.5929,4422.8,4422.2,0.6752]
[1755391283474,4.011,4422.8,4422.7,0.4267]
[1755391283673,3.8512,4422.8,4422.7,1.0458]
[1755391283868,4.011,4422.8,4422.7,1.0458]
[1755391284573,4.1663,4422.8,4422.7,1.0458]
[1755391284874,3.6259,4422.8,4422.5,0.2485]
[1755391285166,0.9585,4422.6,4421.7,3.2078]
[1755391285472,0.6434,4421.9,4421.8,1.0458]
[1755391286062,0.3851,4422.4,4421.8,0.7973]
[1755391286273,0.5734,4422.4,4422.3,0.4267]
[1755391286572,0.5734,4422.4,4422.3,1.0458]
[1755391286966,0.9585,4422.4,4422.3,1.0458]
[1755391294071,1.50821337,4422.4,4422.3,1.0458]
[1755391295578,3.4661,4422.8,4422.7,0.4267]
[1755391295773,4.01609389,4422.8,4422.7,1.0458]
[1755391295974,3.75779389,4422.8,4422.7,1.0458]
[1755391296481,0.54999389,4422.8,4422.7,1.0458]
[1755391297182,4.011,4423.3,4423.2,1.0458]
[1755391297381,4.56162706,4423.3,4423.2,1.0458]
[1755391297987,4.71692706,4423.3,4423.2,1.0458]
[1755391299494,4.71692706,4423.3,4423.2,0.4167]
[1755391301290,4.17652706,4423.3,4422.3,0.6191]
[1755391301489,0.55062706,4423.2,4422.2,3.2078]
[1755391301695,1.09102706,4423.1,4422.3,0.6191]
[1755391301891,0.5734,4423.1,4423.0,0.4267]
[1755391302089,1.12391407,4423.1,4423.0,1.0458]
[1755391302595,1.50901407,4423.1,4423.0,1.0458]
[1755391302795,0.9585,4423.1,4423.0,1.0458]
[1755391302993,3.2078,4423.3,4423.2,0.2585]
[1755391303188,3.2078,4423.3,4423.2,1.0458]
[1755391303394,3.4661,4423.3,4423.2,1.0458]
[1755391303596,3.8512,4423.3,4423.2,1.0458]
[1755391303995,4.011,4423.3,4423.2,1.0458]
[1755391304198,3.8512,4423.3,4423.2,1.0458]
[1755391304998,4.011,4423.3,4423.2,1.0458]
[1755391305196,0.8032,4423.3,4423.2,1.0458]
[1755391307000,0.9585,4423.3,4423.2,1.0458]
[1755391308498,0.3607,4423.2,4422.8,0.2548]
[1755391308800,0.9354,4422.9,4422.8,0.6726]
[1755391310596,0.9354,4422.9,4422.8,1.0451]
[1755391310902,0.9354,4422.2,4422.1,1.0451]
[1755391311499,0.9354,4422.2,4422.1,0.6726]
[1755391311500,1.48518858,4422.2,4422.1,0.6726]
[1755391311694,0.4197,4422.2,4422.1,0.4178]
[1755391311894,0.4197,4422.2,4422.1,1.0451]
[1755391312294,0.2509,4422.2,4422.1,1.0451]
[1755391313094,0.6116,4422.2,4422.1,1.0451]
[1755391313301,0.7804,4422.2,4422.1,1.0451]
[1755391313501,1.48550011,4422.2,4422.1,1.0451]
[1755391313900,0.4197,4421.9,4421.8,3.6268]
[1755391314099,1.48534478,4421.9,4421.8,3.6268]
[1755391314300,1.48534478,4421.9,4421.2,0.6273]
[1755391314301,0.4197,4421.6,4421.2,0.6273]
[1755391314601,0.4197,4421.4,4421.3,1.0451]
[1755391314802,0.6116,4421.4,4421.3,1.0451]
[1755391316704,0.9357,4421.4,4421.3,1.0451]
[1755391321109,0.7804,4421.4,4421.3,1.0451]
[1755391322010,0.9357,4421.4,4421.3,1.0451]
[1755391323613,0.3607,4421.9,4421.3,0.4178]
[1755391323912,0.575,4421.9,4421.8,1.0451]
[1755391324415,0.9357,4421.9,4421.8,1.0451]
[1755391325414,3.2078,4422.0,4421.9,0.6273]
[1755391325610,3.2078,4422.0,4421.9,1.0451]
[1755391325913,3.4587,4422.0,4421.9,1.0451]
[1755391326311,3.8194,4422.0,4421.9,1.0451]
[1755391326712,3.2078,4422.0,4421.9,1.0451]
[1755391328116,3.8194,4422.0,4421.9,1.0451]
[1755391332407,3.2078,4422.5,4421.9,0.4178]
[1755391332613,3.2078,4422.5,4422.4,1.0451]
[1755391332810,0.3607,4422.9,4422.5,0.6273]
[1755391333015,0.9357,4422.9,4422.4,0.3725]
[1755391333215,0.516,4422.8,4422.5,0.2548]
[1755391333418,0.9357,4422.6,4422.5,1.0451]
[1755391334915,0.3607,4423.0,4422.9,0.1642]
[1755391335113,0.3607,4423.0,4422.9,1.0451]